[Event "CCT Julius Baer-D2-Place 2024"]
[Site "Online"]
[Date "2024.09.26"]
[Round "1.1"]
[White "Lazavik, Denis"]
[Black "Navara, David"]
[Result "1-0"]
[ECO "D38"]
[WhiteElo "2578"]
[BlackElo "2681"]
[Annotator "TA"]
[PlyCount "71"]
[EventDate "2024.09.25"]
[EventType "swiss"]
[EventCountry "NET"]
[SourceTitle "playchess.com"]
[Source "ChessBase"]
[SourceQuality "1"]
[TimeControl "600+2"]

{[%evp 11,71,1,6,12,16,17,5,-43,-31,-33,-37,-42,0,17,24,12,10,25,34,0,0,0,0,0,2,0,0,0,0,0,3,6,8,0,24,0,0,0,0,0,0,0,0,0,521,496,541,536,622,607,632,617,949,964,2119,2138,4698,2184,5527,5131,29991,29992]} 1. d4 {[%emt 0:00:02]} Nf6 {[%emt 0:00:05]} 2. c4 {[%emt 0:00:02]} e6 {[%emt 0:00:02]} 3. Nf3 {[%emt 0:00:01]} d5 {[%emt 0:00:01]} 4. Nc3 {[%emt 0:00:01]} Bb4 {[%emt 0:00:04]} 5. Bg5 {[%emt 0:00:03]} h6 {[%emt 0:00:02]} 6. Bh4 {[%emt 0:00:02]} dxc4 {[%emt 0:00:10]} (6... Bxc3+ $6 7. bxc3 c5 8. e3 $14 (8. dxc5 O-O $14)) 7. a3 {[%emt 0:00:02]} Bxc3+ {[%emt 0:00:03]} 8. bxc3 {[%emt 0:00:00]} Nbd7 {[%emt 0:00:18]} 9. e4 {[%emt 0:00:05]} (9. Nd2 $11 {kam in Betracht.}) 9... g5 $15 {[%emt 0:00:01]} 10. Bg3 {[%emt 0:00:01]} Nxe4 {[%emt 0:00:46]} 11. Bxc4 {[%emt 0:00:03]} Nxg3 {[%emt 0:01:16]} (11... b6 $15) 12. fxg3 $11 {[%emt 0:00:12]} b6 {[%emt 0:00:27]} 13. O-O {[%emt 0:00:07][%cal Bh1f1,Bf1f6,Bf6h6,Bh6h7][%mdl 32]} Bb7 {[%emt 0:00:05]} 14. Qe2 {[%emt 0:00:08]} Qe7 {[%emt 0:00:09]} 15. Ne5 {[%emt 0:00:05]} Nxe5 {[%emt 0:00:54]} 16. Qxe5 {[%emt 0:00:00]} Rf8 {[%emt 0:00:01]} 17. a4 {[%emt 0:01:44]} a6 {[%emt 0:01:33]} 18. Rf6 {[%emt 0:01:11][%cal Rc4e6] Droht Bxe6! und aus.} O-O-O {[%emt 0:00:37]} 19. Rxh6 {[%emt 0:00:42]} Qd6 {[%emt 0:00:03]} 20. Qxd6 {[%emt 0:00:24]} ({Viel schlechter ist} 20. Qxg5 Qc6 21. Bf1 Qxc3 $17) 20... Rxd6 {[%emt 0:00:32]} 21. Rf1 {[%emt 0:00:10][%cal Oh6e6] Schwarz sollte Rxe6! verhindern.} Kd7 {[%emt 0:00:01]} 22. Be2 {[%emt 0:02:07]} Ke7 {[%emt 0:00:44]} 23. Rh7 {[%emt 0:00:26]} Be4 {[%emt 0:00:30]} 24. Rg7 {[%emt 0:00:03]} Bg6 {[%emt 0:00:01]} 25. h4 $1 {[%emt 0:00:01]} gxh4 {[%emt 0:00:01]} 26. gxh4 {[%emt 0:00:00][%cal Og2g4]} Rh8 $1 {[%emt 0:00:02]} 27. h5 $36 {[%emt 0:00:07][%mdl 2048] Weiss hat Druck.} Rxh5 {[%emt 0:00:00][%mdl 8192] [#]} (27... Bf5 $11) 28. Rfxf7+ $3 $18 {[%emt 0:00:07][%mdl 512]} Bxf7 {[%emt 0:00:12]} 29. Bxh5 {[%emt 0:00:01]} Rc6 {[%emt 0:00:04]} 30. Rxf7+ {[%emt 0:00:07][%mdl 4096] Endspiel. KRB-KR} Kd6 {[%emt 0:00:00]} 31. Rf3 {[%emt 0:00:09]} Rc4 {[%emt 0:00:01]} 32. g4 {[%emt 0:00:01][%cal Bg2g4,Bg4g5,Bg5g6][%mdl 32]} Rxa4 {[%emt 0:00:01]} 33. g5 {[%emt 0:00:01]} Ra5 {[%emt 0:00:03]} 34. Rg3 {[%emt 0:00:04][%cal Og5g6] Schwarz muss nun g6! beachten.} Ke7 {[%emt 0:00:00] [#]} 35. g6 $1 {[%emt 0:00:04] Beabsichtigt g7 und Matt.} Rg5 {[%emt 0:00:02]} (35... Rd5 36. g7) 36. Rxg5 {[%emt 0:00:01] Gewichteter Fehlerwert: Weiß=0.06 (makellos) /Schwarz=0.64.  Verlustzug:     	---       	Schwarz=1     Fehler:       	Weiß=1     	Schwarz=1     Ungenau:       	Weiß=1     	---        OK:         	Weiß=11    	Schwarz=11    Bester:       	Weiß=1     	Schwarz=1     Stark:        	Weiß=1     	Schwarz=1     Brilliant:      	Weiß=1     	---} 1-0

[Event "CCT Julius Baer-D2-Place 2024"]
[Site "Online"]
[Date "2024.09.26"]
[Round "1.1"]
[White "Makarian, Rudik"]
[Black "Yakubboev, Nodirbek"]
[Result "1/2-1/2"]
[ECO "A24"]
[WhiteElo "2550"]
[BlackElo "2666"]
[Annotator "TA"]
[PlyCount "96"]
[EventDate "2024.09.25"]
[EventType "swiss"]
[EventCountry "NET"]
[SourceTitle "playchess.com"]
[Source "ChessBase"]
[SourceQuality "1"]
[TimeControl "600+2"]

{[%evp 14,96,31,-24,-10,-14,0,-28,-20,-42,-41,-54,-55,-42,-14,-18,-7,0,-12,-26,0,-3,0,0,0,0,0,0,0,0,7,0,8,0,0,0,0,0,0,0,18,0,54,0,28,0,0,0,8,8,27,0,0,0,0,8,8,8,8,8,8,0,0,0,0,0,0,0,0,0,0,0,0,0,0,0,0,0,0,0,0,0,0,0,0]} 1. Nf3 {[%emt 0:00:02]} Nf6 {[%emt 0:00:17]} 2. g3 {[%emt 0:00:03]} g6 {[%emt 0:00:06]} 3. Bg2 {[%emt 0:00:20]} Bg7 {[%emt 0:00:02]} 4. c4 {[%emt 0:00:01]} O-O {[%emt 0:00:06]} 5. Nc3 {[%emt 0:00:05]} d6 {[%emt 0:00:06]} 6. O-O {[%emt 0:00:04]} c6 {[%emt 0:00:18]} 7. d3 {[%emt 0:00:59]} e5 {[%emt 0:00:22]} 8. c5 {[%emt 0:00:48]} dxc5 $11 {[%emt 0:00:50]} 9. Nxe5 {[%emt 0:00:02]} Nd5 {[%emt 0:00:02]} 10. f4 {[%emt 0:01:42]} Nd7 {[%emt 0:00:07] Black has an edge.} 11. Nxd7 {[%emt 0:01:16]} (11. Nxd5 {feels hotter.} cxd5 12. d4 cxd4 13. Qxd4 Re8 14. Qxd5 Qb6+ 15. Rf2) 11... Qxd7 {[%emt 0:00:00]} 12. Nxd5 {[%emt 0:00:02]} cxd5 {[%emt 0:00:02]} 13. f5 {[%emt 0:00:02]} Qd6 {[%emt 0:00:41]} 14. Bf4 {[%emt 0:00:48]} Be5 {[%emt 0:01:02]} 15. e4 {[%emt 0:00:01]} dxe4 {[%emt 0:00:11]} 16. dxe4 {[%emt 0:00:41]} Qxd1 {[%emt 0:00:26]} 17. Raxd1 {[%emt 0:00:00]} Bxb2 {[%emt 0:00:02]} 18. Bd6 $1 {[%emt 0:00:03][%csl LRc5,LRf8]} Re8 {[%emt 0:01:41]} 19. Bxc5 {[%emt 0:00:03]} b6 {[%emt 0:00:25]} 20. Bd4 {[%emt 0:00:09]} Bxd4+ {[%emt 0:00:14]} 21. Rxd4 {[%emt 0:00:00][%cal Oe4e5]} Ba6 {[%emt 0:00:25]} 22. Rfd1 {[%emt 0:00:07]} Bb7 {[%emt 0:00:09]} 23. g4 {[%emt 0:00:13]} Re5 {[%emt 0:00:34]} 24. Kf2 {[%emt 0:00:09]} Rae8 {[%emt 0:00:05]} 25. Rd8 {[%emt 0:00:02]} Kf8 {[%emt 0:00:36]} (25... Bxe4 $2 {perishes.} 26. Rxe8+ Rxe8 27. Re1 $18) 26. Ke3 {[%emt 0:00:26]} Bc6 {[%emt 0:01:21]} 27. Kf4 {[%emt 0:00:24]} Rc5 {[%emt 0:00:02]} (27... Ra5 $11) 28. Rxe8+ {[%emt 0:00:34]} (28. Bf3 $14) 28... Kxe8 $14 {[%emt 0:00:01][%mdl 4096] Endgame. KRB-KRB} 29. Rd2 {[%emt 0:00:01]} f6 {[%emt 0:00:16]} 30. h4 {[%emt 0:00:16]} Ke7 {[%emt 0:00:01]} 31. g5 {[%emt 0:00:40]} gxf5 {[%emt 0:00:08]} 32. exf5 {[%emt 0:00:00] Black must now prevent Bxc6.} Bxg2 {[%emt 0:00:08] The position is equal.} 33. Rxg2 $11 {[%emt 0:00:06] KR-KR} Rc4+ {[%emt 0:00:01]} 34. Kg3 {[%emt 0:00:01]} Rc3+ {[%emt 0:00:05]} 35. Kg4 {[%emt 0:00:01] Threatens to win with Re2+.} Rc4+ {[%emt 0:00:01]} 36. Kh5 {[%emt 0:00:10] [#] g6 is the strong threat.} Rf4 {[%emt 0:00:02]} 37. Kh6 {[%emt 0:00:07]} fxg5 $1 {[%emt 0:00:15]} 38. hxg5 {[%emt 0:00:36]} Kf7 {[%emt 0:00:01][%cal Rf4h4]} 39. g6+ {[%emt 0:00:01]} (39. Kxh7 $2 Rh4#) 39... hxg6 {[%emt 0:00:02]} 40. fxg6+ {[%emt 0:00:01]} Kg8 {[%emt 0:00:01]} 41. Rd2 {[%emt 0:00:03] [#] White wants to mate with Rd8+.} Rh4+ {[%emt 0:00:02]} 42. Kg5 {[%emt 0:00:01]} Ra4 {[%emt 0:00:05]} 43. Rd8+ {[%emt 0:00:02]} (43. Kf6 $5 Rf4+ $8 44. Kg5 $11) 43... Kg7 {[%emt 0:00:00]} 44. Rd7+ {[%emt 0:00:00]} Kg8 {[%emt 0:00:01]} 45. Kf6 {[%emt 0:00:08][%cal Rd7d8]} Rf4+ {[%emt 0:00:01]} 46. Kg5 {[%emt 0:00:06]} Ra4 {[%emt 0:00:01]} 47. Rd8+ {[%emt 0:00:06]} Kg7 {[%emt 0:00:01]} 48. Rd7+ {[%emt 0:00:01]} Kg8 {[%emt 0:00:00] Weighted Error Value: White=0.08 (flawless) /Black=0.06 (flawless) .  Mistake:       	White=1     	Black=1      Inaccurate:     	White=3     	Black=2      OK:         	White=10    	Black=16     Best:        	White=4     	Black=4      Strong:       	White=1     	Black=1} 1/2-1/2

[Event "CCT Julius Baer-D2-Place 2024"]
[Site "Online"]
[Date "2024.09.26"]
[Round "1.2"]
[White "Robson, Ray"]
[Black "Theodorou, Nikolas"]
[Result "1-0"]
[ECO "E51"]
[WhiteElo "2700"]
[BlackElo "2619"]
[Annotator "TA"]
[PlyCount "75"]
[EventDate "2024.09.25"]
[EventType "swiss"]
[EventCountry "NET"]
[SourceTitle "playchess.com"]
[Source "ChessBase"]
[SourceQuality "1"]
[TimeControl "600+2"]

{[%evp 17,75,17,9,0,15,7,40,3,17,13,26,0,36,-55,-39,-71,-59,-47,-53,-55,-46,-84,-57,-84,-54,-145,-94,-160,-107,-92,0,-104,-44,-58,0,0,0,-29,20,-39,30,34,93,-10,-3,-18,-28,-21,-11,-55,30,37,43,90,636,641,880,880,1474,884]} 1. d4 {[%emt 0:00:06]} Nf6 {[%emt 0:00:04]} 2. c4 {[%emt 0:00:01]} e6 {[%emt 0:00:00]} 3. Nc3 {[%emt 0:00:06]} Bb4 {[%emt 0:00:03]} 4. e3 {[%emt 0:00:03]} O-O {[%emt 0:00:01]} 5. Bd3 {[%emt 0:00:13]} d5 {[%emt 0:00:03]} 6. a3 {[%emt 0:00:03]} dxc4 {[%emt 0:00:19]} 7. Bxc4 {[%emt 0:00:03]} Bd6 {[%emt 0:00:00]} 8. Nf3 {[%emt 0:00:09]} Nc6 {[%emt 0:00:06]} 9. e4 {[%emt 0:00:14]} e5 {[%emt 0:00:01]} 10. d5 {[%emt 0:00:20] White is better. Central control and development advantage. Consider castling kingside. E51: Nimzo-Indisch: Rubinstein: 4...0-0 5 Pf3 d5.} Ne7 {[%emt 0:00:00] OK} 11. O-O {[%emt 0:00:09] OK} Ng6 {[%emt 0:00:01] Onnauwkeurig 11...a6 is geavanceerde techniek.} 12. Re1 {[%emt 0:00:08] White is slightly better, Black needs to defend solidly. Nc3-d2 is a good move. Onnauwkeurig. Wit staat iets beter.} a6 {[%emt 0:00:02]} 13. h3 {[%emt 0:00:22]} h6 {[%emt 0:00:02]} 14. Be3 {[%emt 0:00:05] White is better. The d5 pawn is strong, and Black's pieces are somewhat passive. White should consider developing with moves like Be3 or Qe2. Onnauwkeurig} Nh5 {[%emt 0:00:10] Onnauwkeurig} 15. Ne2 $146 {[%emt 0:01:13] Fout (0.9)} (15. Nd2 $14 Nhf4 16. Bf1) ({Predecessor:} 15. Bf1 Nhf4 16. Kh2 f5 17. g3 Nh5 18. exf5 Bxf5 19. Nd2 Nf6 20. Nc4 e4 21. Nxd6 Qxd6 {½-½ Willson,O (2155)-Carleton,J (2265) BCF-chT2 1819 (4NCL) Promotion 2018 (9.15)}) 15... f5 $1 $15 {[%emt 0:00:11] Sterk} 16. Ng3 {[%emt 0:00:07] Onnauwkeurig} Nxg3 {[%emt 0:00:35] Black is better. White needs to protect the king and improve piece coordination. Black should consider attacking with ...f4 or ...Nf4. OK} 17. fxg3 {[%emt 0:00:01] White is slightly better. Consider playing Bg5 to challenge Black's pinned knight. Black needs to be cautious about the weak pawns and potential tactics on the kingside.} f4 {[%emt 0:00:00] OK} 18. Bf2 {[%emt 0:00:08] White is slightly better. An aggressive d4 break could open the center and leverage White's space advantage. Black needs to be cautious of weaker pawns. OK} fxg3 {[%emt 0:00:12] OK} 19. Bxg3 {[%emt 0:00:01] Onnauwkeurig} Nf4 {[%emt 0:00:00] White is better, dominating the center and with more active pieces. Black needs to defend carefully. Moving the knight or bishop to contest the center might be advisable. Beste} 20. Rf1 {[%emt 0:00:13] White is better. Central control and active pieces favor White. Black needs to defend actively, and consider moves like ...Bf5. Onnauwkeurig} Bd7 {[%emt 0:00:18] Onnauwkeurig} 21. Qd2 {[%emt 0:00:27] White is better. The bishop pair and active pieces provide more options. Black needs to defend carefully and address the threats against the kingside. Fout (0.9)} (21. Rc1 $15) 21... g5 {[%emt 0:00:32] Fout (0.5)} (21... Qe8 $142 $1 {Sterke dreiging met ...Qg6.} 22. Nh4 Qh5) 22. Be2 {[%emt 0:01:03] [#] White is slightly better. Black needs to defend carefully. Consider strengthening the king's position. Fout (0.7)} (22. Rf2 $142) 22... Qe8 {[%emt 0:00:24] Fout (0.5)} (22... Nxe2+ $142 $1 23. Qxe2 Bb5) 23. Nh2 {[%emt 0:00:28]} h5 {[%emt 0:00:22] Black has a significant advantage with active pieces. White's king is somewhat exposed, and Black can create threats with moves like ...Qh5 or ...Nxh3+. Remt Bg4. Fout (0.9)} (23... Qg6 $17 24. Rae1 h5 (24... Qxe4 25. Bg4 $17)) 24. Qd1 {[%emt 0:00:15] Fout (1.0)} (24. Bxf4 $1 $11 {Houdt de partij in balans.} gxf4 25. Kh1) 24... Qg6 {[%emt 0:00:27] Fout (0.6)} (24... Ba4 $17 25. Qd2 Nxe2+ 26. Qxe2 Rxf1+ 27. Nxf1 (27. Rxf1 Bb5 $15) 27... Qg6) 25. Bxf4 {[%emt 0:00:15] White is better. Black's king is vulnerable. Consider capturing on f4 or playing Bxf4. Beste (Gemakkelijk)} gxf4 {[%emt 0:00:00] Fout (0.6)} (25... Rxf4 $15 26. Rxf4 exf4 (26... gxf4 27. Qd3 $15)) 26. Bxh5 $11 {[%emt 0:00:06] Beste (Gemakkelijk)} Qxe4 {[%emt 0:00:00] Dreigt te winnen met ...Rad8. OK} 27. Bg4 {[%emt 0:00:33] White is slightly better; Black's position is cramped. Moving the queen or bishop should be considered to increase pressure. Wit is zwak op de donkere velden. Onnauwkeurig} Bb5 {[%emt 0:00:01] Fout (0.5)} (27... Rad8 {was beter.}) 28. Re1 $1 {[%emt 0:00:17] Sterk} Qg6 {[%emt 0:00:16] Fout (0.7)} ({Zwart zou moeten proberen} 28... Qd4+ $1 $15 29. Qxd4 exd4) 29. Be6+ {[%emt 0:00:09]} Kh8 {[%emt 0:00:53] [#] White is better due to the strong bishop on e6 and the pressure against Black's position. Black needs to defend carefully, possibly considering f4 to create counterplay. Fout (0.6)} ({Zwart zou moeten spelen} 29... Kg7 $14) 30. Ng4 {[%emt 0:00:20] [#] Fout (1.0)} ({Wit moet spelen} 30. Nf3 $1 $16) 30... f3 $1 {[%emt 0:00:01] OK} 31. gxf3 {[%emt 0:00:09] White is better. The bishop pair and active pieces give White strong attacking chances. Playing Qb1 or Nh6 could be good moves. Black needs to defend carefully. OK} Rf4 {[%emt 0:00:00] Voorkomt Re4. Hoopt vervolgens op ...Raf8. OK} 32. Kh1 {[%emt 0:01:04][%cal Oa3a4] OK} Raf8 {[%emt 0:01:27][%cal Rf4f3] OK} 33. Nh2 {[%emt 0:00:09] Onnauwkeurig} (33. Rg1 $5 Qh7 (33... Rxf3 34. Nxe5 Qe4 35. Nxf3 $11) 34. Nh2 $17 (34. Rg3 Bd3 $15)) 33... e4 {[%emt 0:00:00] Black is better here. White has weak pawns and Black's pieces are very active. White needs to find counterplay or solidify their position. Fout (0.8)} ({Beter is} 33... Rd4 $15 34. Qc1 Qh7) 34. Qd4+ $1 {[%emt 0:00:10] Sterk} Kh7 {[%emt 0:00:18] Beste} 35. Rxe4 {[%emt 0:00:24] White is clearly better. Black's king is exposed. A potential attacking move is Rg1. OK} Be2 $2 {[%emt 0:00:18][%mdl 8192] Verliest partij (5.5)} (35... Qg3 $16 36. Rxf4 Rxf4) 36. Rg1 $18 {[%emt 0:00:29] Beste. Wit is duidelijk aan het winnen.} Qf6 {[%emt 0:02:26] Onnauwkeurig} 37. Rxf4 {[%emt 0:00:09] White is better. Black's king is exposed and White's pieces are actively placed.} Bxf4 {[%emt 0:00:00] White is winning. Black's position is very weak with insufficient defense against White's threats.} 38. Qe4+ {[%emt 0:00:05] Blunder waarde: Wit=0.25 (precies) /Zwart=0.62.  Verliest partij:   	---       	Zwart=1      Fout:        	Wit=5      	Zwart=9      Onnauwkeurig:    	Wit=7      	Zwart=4      OK:         	Wit=5      	Zwart=8      Beste:        	Wit=3      	Zwart=2      Sterk:        	Wit=2      	Zwart=1} 1-0

[Event "CCT Julius Baer-D2-Place 2024"]
[Site "Online"]
[Date "2024.09.26"]
[Round "1.2"]
[White "Navara, David"]
[Black "Lazavik, Denis"]
[Result "1/2-1/2"]
[ECO "C50"]
[WhiteElo "2681"]
[BlackElo "2578"]
[Annotator "TA"]
[PlyCount "143"]
[EventDate "2024.09.25"]
[EventType "swiss"]
[EventCountry "NET"]
[SourceTitle "playchess.com"]
[Source "ChessBase"]
[SourceQuality "1"]
[TimeControl "600+2"]

{[%evp 62,143,0,0,0,0,0,-7,0,0,0,0,0,0,0,0,0,0,0,0,0,0,0,0,0,0,6,7,20,12,17,0,8,8,8,13,23,23,36,17,110,23,31,5,10,0,0,0,33,0,0,0,0,0,0,0,0,0,0,0,0,0,0,0,0,0,0,0,0,0,0,0,0,0,0,0,0,0,0,0,0,0,0,0]} 1. e4 {[%emt 0:00:04]} e5 {[%emt 0:00:06]} 2. Nf3 {[%emt 0:00:02]} Nc6 {[%emt 0:00:00]} 3. Bc4 {[%emt 0:00:02]} Bc5 {[%emt 0:00:02]} 4. d3 {[%emt 0:00:01]} Nf6 {[%emt 0:00:01]} 5. Nc3 {[%emt 0:00:02]} d6 {[%emt 0:00:02]} 6. Na4 {[%emt 0:00:01]} Bb6 {[%emt 0:00:01] C50: Hungarian Defence and Giuoco Pianissimo.} 7. a3 {[%emt 0:00:01]} h6 {[%emt 0:00:02]} 8. h3 {[%emt 0:00:12]} O-O {[%emt 0:00:02]} 9. O-O {[%emt 0:00:04]} Re8 $1 {[%emt 0:00:01][%mdl 4] outshines the older 9...Be6.} 10. b4 {[%emt 0:00:03]} a6 {[%emt 0:00:08]} 11. Nxb6 {[%emt 0:00:06]} cxb6 {[%emt 0:00:00]} 12. Bb3 {[%emt 0:00:05]} b5 {[%emt 0:00:03]} 13. Re1 {[%emt 0:00:07]} Be6 {[%emt 0:00:04]} 14. c4 {[%emt 0:00:03]} bxc4 {[%emt 0:00:08]} 15. dxc4 {[%emt 0:00:00]} b5 {[%emt 0:00:12]} 16. Qd3 {[%emt 0:00:17]} bxc4 {[%emt 0:01:16]} 17. Bxc4 {[%emt 0:00:00]} d5 $146 {[%emt 0:00:03]} ({Predecessor:} 17... Bxc4 18. Qxc4 Qd7 19. Bb2 Qb7 20. Rac1 Rac8 21. Qd3 Red8 22. Qe2 Ne7 23. Nd2 Ng6 {0-1 So,W (2757)-Lazavik,D (2578) Chess.com SpeedChess blitz 2024 (1.13)}) 18. exd5 {[%emt 0:00:10]} Bxd5 {[%emt 0:00:30]} 19. Bxd5 {[%emt 0:00:06]} Qxd5 {[%emt 0:00:04]} 20. Qxd5 {[%emt 0:00:05]} Nxd5 {[%emt 0:00:00]} 21. Bb2 {[%emt 0:00:08]} f6 {[%emt 0:00:39]} 22. Rac1 {[%emt 0:00:09]} Nce7 {[%emt 0:00:06]} 23. g3 {[%emt 0:00:47]} Nb6 {[%emt 0:01:11]} 24. Nd2 {[%emt 0:00:34]} Rec8 {[%emt 0:00:49]} 25. Kf1 {[%emt 0:00:39]} Kf7 {[%emt 0:00:12]} 26. Ke2 {[%emt 0:00:08]} a5 {[%emt 0:00:50]} 27. Rxc8 {[%emt 0:00:12]} Nexc8 {[%emt 0:00:04]} 28. bxa5 {[%emt 0:00:47]} Rxa5 {[%emt 0:00:06]} 29. Rc1 {[%emt 0:00:02]} Ra7 {[%emt 0:00:14]} 30. Nc4 {[%emt 0:00:15]} Nxc4 {[%emt 0:00:18]} 31. Rxc4 {[%emt 0:00:00]} Nd6 {[%emt 0:00:01]} 32. Rb4 {[%emt 0:00:16]} Ke6 {[%emt 0:00:03]} 33. a4 {[%emt 0:00:09]} Kd5 {[%emt 0:00:09]} 34. Bc1 {[%emt 0:00:42]} Rc7 {[%emt 0:02:29]} 35. Kd1 {[%emt 0:00:16]} Nc4 {[%emt 0:00:04]} 36. Rb5+ {[%emt 0:00:22]} Ke4 {[%emt 0:00:28]} 37. Ke2 {[%emt 0:00:06]} Nd6 {[%emt 0:00:01]} 38. Rb4+ {[%emt 0:00:26]} Kd5 {[%emt 0:00:01]} 39. Kd1 {[%emt 0:00:20]} Nc4 {[%emt 0:00:03]} 40. Bd2 {[%emt 0:00:01]} Kc5 {[%emt 0:00:34]} 41. Bc3 {[%emt 0:00:14]} Ra7 {[%emt 0:00:03]} 42. Kc2 {[%emt 0:00:04]} Nb6 {[%emt 0:00:04]} 43. Kb3 {[%emt 0:00:05]} Kc6 {[%emt 0:00:05]} 44. Bd2 {[%emt 0:00:14]} Ra6 {[%emt 0:00:01]} 45. h4 {[%emt 0:00:17]} h5 {[%emt 0:00:01]} 46. g4 {[%emt 0:00:08]} hxg4 {[%emt 0:00:05]} 47. Rxg4 {[%emt 0:00:01]} Ra7 {[%emt 0:00:02]} 48. h5 {[%emt 0:00:12]} Nd5 {[%emt 0:00:02]} 49. Rc4+ {[%emt 0:00:07]} Kd6 {[%emt 0:00:01]} 50. a5 {[%emt 0:00:18]} f5 {[%emt 0:00:01]} (50... Ra8 $11) 51. f3 {[%emt 0:00:18]} ({White should play} 51. Rc8 $16) 51... f4 {[%emt 0:00:01]} 52. Bb4+ {[%emt 0:00:15]} Ke6 {[%emt 0:00:02]} 53. Rc5 {[%emt 0:00:38]} Rb7 {[%emt 0:00:04]} 54. Rc4 {[%emt 0:00:06]} Kf5 {[%emt 0:00:01]} (54... Kd7 $5 55. a6 $8 Ra7 $16) 55. a6 {[%emt 0:00:10]} Ra7 {[%emt 0:00:05]} 56. Rc6 {[%emt 0:00:01]} Nxb4 $1 {[%emt 0:00:04]} 57. Kxb4 {[%emt 0:00:01]} e4 {[%emt 0:00:00]} 58. fxe4+ {[%emt 0:00:29]} Kxe4 {[%emt 0:00:00]} 59. Kb5 {[%emt 0:00:00]} f3 {[%emt 0:00:01]} 60. Kb6 {[%emt 0:00:02]} Rf7 {[%emt 0:00:04]} (60... f2 $5 61. Rc1 $8 Rf7 $11) 61. a7 {[%emt 0:00:26]} Rxa7 {[%emt 0:00:01]} 62. Kxa7 {[%emt 0:00:00]} f2 {[%emt 0:00:01]} 63. Rc1 {[%emt 0:00:01]} Kf3 {[%emt 0:00:02]} 64. Kb6 {[%emt 0:00:01]} Kg2 {[%emt 0:00:01]} 65. Kc5 {[%emt 0:00:03]} f1=Q {[%emt 0:00:01]} 66. Rxf1 {[%emt 0:00:00]} Kxf1 {[%emt 0:00:00]} 67. Kd4 {[%emt 0:00:02]} Kg2 {[%emt 0:00:01]} 68. Ke4 {[%emt 0:00:01]} Kg3 {[%emt 0:00:00]} 69. Kf5 {[%emt 0:00:01]} Kh4 {[%emt 0:00:01]} 70. Kg6 {[%emt 0:00:02]} Kg4 {[%emt 0:00:00]} 71. h6 {[%emt 0:00:00]} gxh6 {[%emt 0:00:00]} 72. Kxh6 {[%emt 0:00:01]} 1/2-1/2